fUSD/lending_fUSD_20260203
["ID","MTS","AMOUNT","RATE_DAILY","PERIOD"]
[404443143,1770144641663,-150.01033379,0.0001,2]
[404443144,1770144641673,-1156.75834416,0.0001,2]
[404443145,1770144641685,-1156.75834416,0.0001,2]
[404443146,1770144641696,-225.18697532,0.00010045,2]
[404443147,1770144641706,-233.51889341,0.000101,2]
[404443148,1770144641716,-500.0,0.00010137,2]
[404443149,1770144641727,-256.43,0.00010137,2]
[404443150,1770144641742,-242.15909246,0.00010155,2]
[404443151,1770144641753,-251.11897888,0.0001021,2]
[404443152,1770144641763,-12627.34,0.00010241,2]
[404443153,1770144641774,-260.4103811,0.00010265,2]
[404443154,1770144641784,-270.0455652,0.0001032,2]
[404443155,1770144641794,-280.03725112,0.00010375,2]
[404443156,1770144641804,-256.43,0.00010411,2]
[404443157,1770144641813,-290.39862941,0.0001043,2]
[404443158,1770144641824,-1545.7,0.0001044,2]
[404443159,1770144641834,-181.08010149,0.00010483,2]
[404443160,1770144641843,-200.0,0.00010483,2]
[404443161,1770144641853,-287.61899177,0.00010483,2]
[404443162,1770144641863,-209.40437685,0.00010483,2]
[404443163,1770144641872,-209.40437685,0.00010483,2]
[404443164,1770144641882,-301.1433787,0.00010485,2]
[404443165,1770144641892,-500.0,0.00010548,2]
[404443166,1770144641904,-256.43,0.00010685,2]
[404443167,1770144641914,-500.0,0.00010959,2]
[404443168,1770144641925,-256.43,0.00010959,2]
[404443169,1770144641935,-166.51015303,0.00011017,2]
[404443170,1770144641944,-500.0,0.00011017,2]
[404443171,1770144641954,-500.0,0.00011017,2]
[404443172,1770144641963,-500.55069623,0.00011017,2]
[404443173,1770144641973,-500.0,0.00011017,2]
[404443174,1770144641986,-500.0,0.00011017,2]
[404443175,1770144641996,-500.0,0.00011017,2]
[404443176,1770144642007,-500.0,0.00011017,2]
[404443177,1770144642018,-187.78006525,0.00011031,2]
[404443178,1770144642028,-200.0,0.00011031,2]
[404443179,1770144642038,-298.26089446,0.00011031,2]
[404443180,1770144642049,-6016.54096047,0.00011099,2]
[404443181,1770144642060,-6016.54096038,0.00011099,2]
[404443182,1770144642070,-6016.54096038,0.00011099,2]
[404443183,1770144642080,-6016.54096038,0.00011099,2]
[404443184,1770144642090,-10522.4350402,0.00011099,2]
[404443185,1770144642100,-10522.43504015,0.00011099,2]
[404443186,1770144642110,-10522.43504015,0.00011099,2]
[404443187,1770144642121,-10522.43504015,0.00011099,2]
[404443188,1770144642135,-500.0,0.00011226,2]
[404443189,1770144642150,-256.43,0.00011233,2]
[404443190,1770144642161,-2791.97235582,0.00011254,2]
[404443191,1770144642172,-7368.05922032,0.00011254,2]
[404443192,1770144642182,-12998.12982861,0.00011254,2]
[404443193,1770144642192,-334.5472959,0.00011304,2]
[404443194,1770144642203,-1126.27,0.00011334,2]
[404443195,1770144642213,-150.01033379,0.00011369,2]
[404443196,1770144642224,-256.43,0.00011507,2]
[404443197,1770144642238,-194.72792766,0.00011579,2]
[404443198,1770144642248,-200.0,0.00011579,2]
[404443199,1770144642258,-309.29654756,0.00011579,2]
[404443200,1770144642269,-166.66,0.0001162,2]
[404443201,1770144642279,-6016.54096038,0.00011665,2]
[404443202,1770144642289,-256.43,0.00011781,2]
[404443203,1770144642299,-256.43,0.00012055,2]
[404443205,1770144642310,-166.66,0.000121,2]
[404443207,1770144642319,-201.93286099,0.00012127,2]
[404443209,1770144642329,-200.0,0.00012127,2]
[404443210,1770144642339,-256.43,0.00012328,2]
[404443213,1770144642348,-239.96579263,0.0001235,2]
[404443216,1770144642358,-1348.01360576,0.0001235,2]
[404443218,1770144642368,-5445.9872951,0.0001235,2]
[404443220,1770144642378,-348.07987375,0.0001235,2]
[404443222,1770144642388,-166.66,0.00012579,2]
[404443224,1770144642398,-256.43,0.00012602,2]
[404443226,1770144642408,-346.92554585,0.00012673,2]
[404443228,1770144642418,-209.40437684,0.00012675,2]
[404443229,1770144642428,-200.0,0.00012675,2]
[404443231,1770144642438,-256.43,0.00012876,2]
[404443233,1770144642448,-6016.54096038,0.00012907,2]
[404443235,1770144642459,-166.66,0.00013058,2]
[404443237,1770144642469,-256.43,0.0001315,2]
[404443238,1770144642482,-217.15233878,0.00013223,2]
[404443239,1770144642492,-200.0,0.00013223,2]
[404443240,1770144642501,-151.0,0.00013407,2]
[404443241,1770144642512,-256.43,0.00013424,2]
[404443242,1770144642522,-166.66,0.00013538,2]
[404443243,1770144642536,-151.0,0.00013541,2]
[404443244,1770144642546,-151.0,0.00013541,2]
[404443245,1770144642557,-500.0,0.00013589,2]
[404443246,1770144642567,-151.0,0.00013607,2]
[404443247,1770144642577,-151.0,0.00013647,2]
[404443248,1770144642586,-500.0,0.00013698,2]
[404443249,1770144642596,-500.0,0.00013698,2]
[404443250,1770144642607,-500.0,0.00013698,2]
[404443251,1770144642621,-555.66,0.00013698,2]
[404443252,1770144642631,-500.0,0.00013698,2]
[404443253,1770144642641,-256.44,0.00013698,2]
[404443254,1770144642651,-500.0,0.00013698,2]
[404443255,1770144642661,-500.0,0.00013698,2]
[404443256,1770144642671,-9681.08,0.00013699,2]
[404443257,1770144642681,-21998.52,0.000137,2]
[404443258,1770144642692,-21998.52,0.000137,2]
[404443259,1770144642704,-151.0,0.00013723,2]
[404443260,1770144642715,-225.18697532,0.00013771,2]
[404443261,1770144642726,-200.0,0.00013771,2]
[404443262,1770144642741,-359.76179104,0.00014042,2]
[404443263,1770144642751,-6016.54096038,0.00014148,2]
[404443264,1770144642761,-160.0,0.00014267,2]
[404443265,1770144642771,-233.51889341,0.00014319,2]
[404443266,1770144642780,-200.0,0.00014319,2]
[404443267,1770144642790,-307.0,0.000147,3]
[404443268,1770144643065,-13440.2597486,0.00014783,2]
[404443271,1770144643117,-348.59,0.00014824,2]
[404443272,1770144643127,-242.15909246,0.00014867,2]
[404443274,1770144643137,-200.0,0.00014867,2]
[404443276,1770144643146,-500.0,0.00014884,2]
[404443277,1770144643156,-250.0,0.00015,2]
[404443278,1770144643165,-5531.0,0.000151,5]
[404443279,1770144643175,-500.0,0.00015288,2]
[404443280,1770144643186,-6016.54096038,0.0001539,2]
[404443281,1770144643195,-373.07297731,0.00015411,2]
[404443282,1770144643204,-251.11897888,0.00015415,2]
[404443283,1770144643217,-200.0,0.00015415,2]
[404443284,1770144643226,-150.0,0.00015536,7]
[404443285,1770144643238,-239.90095,0.00015536,7]
[404443286,1770144643248,-329.801901,0.00015536,7]
[404443287,1770144643257,-419.702851,0.00015536,7]
[404443288,1770144643266,-509.603802,0.00015536,7]
[404443289,1770144643276,-599.504753,0.00015536,7]
[404443290,1770144643285,-689.405703,0.00015536,7]
[404443291,1770144643295,-779.306654,0.00015536,7]
[404443292,1770144643304,-869.207605,0.00015536,7]
[404443293,1770144643313,-959.108555,0.00015536,7]
[404443294,1770144643322,-151.0,0.00015607,2]
[404443295,1770144643332,-7265.6182629,0.0001561,2]
[404443296,1770144643341,-281935.6354073,0.0001561,2]
[404443297,1770144643350,-28013.7593826,0.0001561,2]
[404443298,1770144643360,-19444.42485652,0.00015804,2]
[404443299,1770144643370,-500.0,0.0001583,2]
[404443300,1770144643380,-260.4103811,0.00015963,2]
[404443301,1770144643390,-150.0,0.00016032,7]
[404443302,1770144643399,-515.724223,0.00016032,7]
[404443303,1770144643410,-881.448447,0.00016032,7]
[404443304,1770144643420,-1247.172671,0.00016032,7]
[404443305,1770144643430,-1612.896894,0.00016032,7]
[404443306,1770144643440,-1978.621118,0.00016032,7]
[404443307,1770144643451,-2344.345342,0.00016032,7]
[404443308,1770144643460,-2710.069565,0.00016032,7]
[404443309,1770144643470,-3075.793789,0.00016032,7]
[404443310,1770144643483,-3441.518013,0.00016032,7]
[404443311,1770144643496,-4438.32,0.00016116,2]
[404443312,1770144643505,-839.0,0.000164,2]
[404443313,1770144643515,-2831.0,0.000164,2]
[404443314,1770144643524,-837.0,0.000164,2]
[404443315,1770144643534,-200.0,0.00016438,2]
[404443316,1770144643544,-200.0,0.00016438,3]
[404443317,1770144643553,-200.0,0.00016438,4]
[404443318,1770144643562,-200.0,0.00016438,5]
[404443319,1770144643571,-200.0,0.00016438,6]
[404443320,1770144643580,-200.0,0.00016438,7]
[404443321,1770144643589,-200.0,0.00016438,8]
[404443322,1770144643598,-200.0,0.00016438,9]
[404443323,1770144643607,-200.0,0.00016438,10]
[404443324,1770144643629,-200.0,0.00016438,11]
[404443325,1770144643638,-200.0,0.00016438,12]
[404443326,1770144643648,-200.0,0.00016438,13]
[404443327,1770144643658,-200.0,0.00016438,14]
[404443328,1770144643669,-347.38207191,0.00016438,15]
[404443329,1770144643679,-500.0,0.00016438,2]
[404443330,1770144643688,-571.15632912,0.00016438,2]
[404443331,1770144643698,-1013.84,0.0001644,2]
[404443332,1770144643708,-270.0455652,0.00016511,2]
[404443333,1770144643717,-1000.0,0.00016565,7]
[404443334,1770144643727,-348.59,0.0001659,2]
[404443335,1770144643739,-6016.54096038,0.00016631,2]
[404443336,1770144643748,-2000.0,0.000167,2]
[404443337,1770144643758,-165.71,0.00016712,2]
[404443338,1770144643767,-839.0,0.0001672,2]
[404443339,1770144643776,-839.0,0.0001672,2]
[404443340,1770144643786,-500.0,0.0001673,2]
[404443341,1770144643796,-500.0,0.0001673,2]
[404443342,1770144643805,-500.0,0.0001673,2]
[404443343,1770144643815,-386.87667747,0.0001678,2]
[404443344,1770144643825,-26308.9926,0.00016804,2]
[404443345,1770144643834,-19474.682984,0.000169,3]
[404443346,1770144643843,-160.0,0.000169,3]
[404443347,1770144643852,-500.0,0.00017,7]
[404443348,1770144643861,-500.0,0.00017,7]
[404443349,1770144643870,-500.0,0.00017,7]
[404443350,1770144643880,-500.0,0.00017,7]
[404443351,1770144643889,-500.0,0.00017,7]
[404443352,1770144643898,-500.0,0.00017,7]
[404443353,1770144643907,-500.0,0.00017,7]
[404443354,1770144643916,-500.0,0.00017,7]
[404443355,1770144643925,-500.0,0.00017,7]
[404443356,1770144643935,-500.0,0.00017,7]
[404443357,1770144643943,-500.0,0.00017,7]
[404443358,1770144643953,-500.0,0.00017,7]
[404443359,1770144643962,-500.0,0.00017,7]
[404443360,1770144643971,-500.0,0.00017,7]
[404443361,1770144643984,-500.0,0.00017,7]
[404443362,1770144643994,-500.0,0.00017,7]
[404443363,1770144644003,-500.0,0.00017,7]
[404443364,1770144644012,-500.0,0.00017,7]
[404443365,1770144644022,-500.0,0.00017,7]
[404443366,1770144644032,-500.0,0.00017,7]
[404443367,1770144644042,-500.0,0.00017,7]
[404443368,1770144644051,-500.0,0.00017,7]
[404443369,1770144644060,-500.0,0.00017,7]
[404443370,1770144644070,-500.0,0.00017,7]
[404443371,1770144644080,-500.0,0.00017,7]
[404443372,1770144644089,-500.0,0.00017,7]
[404443373,1770144644098,-500.0,0.00017,7]
[404443374,1770144644107,-500.0,0.00017,7]
[404443375,1770144644117,-500.0,0.00017,7]
[404443376,1770144644127,-500.0,0.00017,7]
[404443377,1770144644136,-500.0,0.00017,7]
[404443378,1770144644145,-500.0,0.00017,7]
[404443379,1770144644155,-500.0,0.00017,7]
[404443380,1770144644164,-500.0,0.00017,7]
[404443381,1770144644174,-500.0,0.00017,7]
[404443382,1770144644183,-500.0,0.00017,7]
[404443383,1770144644193,-500.0,0.00017,7]
[404443384,1770144644203,-500.0,0.00017,7]
[404443385,1770144644212,-500.0,0.00017,7]
[404443386,1770144644221,-500.0,0.00017,7]
[404443387,1770144644233,-500.0,0.00017,7]
[404443388,1770144644243,-500.0,0.00017,7]
[404443389,1770144644252,-500.0,0.00017,7]
[404443390,1770144644262,-500.0,0.00017,7]
[404443391,1770144644272,-500.0,0.00017,7]
[404443392,1770144644282,-500.0,0.00017,7]
[404443393,1770144644293,-500.0,0.00017,7]
[404443394,1770144644303,-500.0,0.00017,7]
[404443395,1770144644313,-500.0,0.00017,7]
[404443396,1770144644322,-500.0,0.00017,7]
[404443397,1770144644332,-500.0,0.00017,7]
[404443398,1770144644342,-500.0,0.00017,7]
[404443399,1770144644352,-500.0,0.00017,7]
[404443400,1770144644361,-500.0,0.00017,7]
[404443401,1770144644371,-500.0,0.00017,7]
[404443402,1770144644380,-500.0,0.00017,7]
[404443403,1770144644389,-500.0,0.00017,7]
[404443404,1770144644399,-160.0,0.00017,7]
[404443405,1770144644408,-500.0,0.00017,7]
[404443406,1770144644418,-500.0,0.00017,7]
[404443407,1770144644427,-500.0,0.00017,7]
[404443408,1770144644436,-500.0,0.00017,7]
[404443409,1770144644445,-500.0,0.00017,7]
[404443410,1770144644455,-500.0,0.00017,7]
[404443411,1770144644465,-500.0,0.00017,7]
[404443412,1770144644474,-500.0,0.00017,7]
[404443413,1770144644488,-500.0,0.00017,7]
[404443414,1770144644498,-500.0,0.00017,7]
[404443415,1770144644507,-500.0,0.00017,7]
[404443416,1770144644516,-500.0,0.00017,7]
[404443417,1770144644526,-500.0,0.00017,7]
[404443418,1770144644536,-500.0,0.00017,7]
[404443419,1770144644545,-500.0,0.00017,7]
[404443420,1770144644555,-500.0,0.00017,7]
[404443421,1770144644564,-500.0,0.00017,7]
[404443422,1770144644574,-500.0,0.00017,7]
[404443423,1770144644584,-500.0,0.00017,7]
[404443424,1770144644594,-500.0,0.00017,7]
[404443425,1770144644603,-500.0,0.00017,7]
[404443426,1770144644612,-500.0,0.00017,7]
[404443427,1770144644622,-404.8,0.00017,7]
[404443428,1770144644636,-500.0,0.00017,7]
[404443429,1770144644645,-500.0,0.00017,7]
[404443430,1770144644654,-500.0,0.00017,7]
[404443431,1770144644664,-500.0,0.00017,7]
[404443432,1770144644675,-500.0,0.00017,7]
[404443433,1770144644684,-500.0,0.00017,7]
[404443434,1770144644693,-500.0,0.00017,7]
[404443435,1770144644703,-500.0,0.00017,7]
[404443436,1770144644713,-500.0,0.00017,7]
[404443437,1770144644722,-500.0,0.00017,7]
[404443438,1770144644733,-500.0,0.00017,7]
[404443439,1770144644743,-500.0,0.00017,7]
[404443440,1770144644752,-500.0,0.00017,7]
[404443441,1770144644761,-500.0,0.00017,7]
[404443442,1770144644770,-500.0,0.00017,7]
[404443443,1770144644779,-500.0,0.00017,7]
[404443444,1770144644789,-500.0,0.00017,7]
[404443445,1770144644797,-500.0,0.00017,7]
[404443446,1770144644806,-500.0,0.00017,7]
[404443447,1770144644816,-500.0,0.00017,7]
[404443448,1770144644825,-500.0,0.00017,7]
[404443449,1770144644834,-500.0,0.00017,7]
[404443450,1770144644843,-500.0,0.00017,7]
[404443451,1770144644852,-166.51,0.00017,7]
[404443452,1770144644861,-500.0,0.00017,7]
[404443453,1770144644870,-300.0,0.00017,2]
[404443454,1770144644880,-160.0,0.00017,7]
[404443455,1770144644889,-13440.2597486,0.00017033,2]
[404443456,1770144644898,-2836.0,0.0001704,2]
[404443457,1770144644910,-280.03725112,0.00017059,2]
[404443458,1770144644920,-200.0,0.00017174,2]
[404443459,1770144644930,-1000.0,0.0001726,2]
[404443460,1770144644939,-500.0,0.00017278,2]
[404443461,1770144644948,-1000.0,0.00017278,2]
[404443462,1770144644957,-500.0,0.00017278,2]
[404443463,1770144644967,-839.0,0.0001736,2]
[404443464,1770144644976,-839.0,0.00017426,2]
[404443465,1770144644987,-1000.0,0.00017534,2]
[404443466,1770144644997,-5268.0,0.00017564,2]
[404443467,1770144645007,-152.0,0.00017607,3]
[404443468,1770144645017,-290.39862941,0.00017607,2]
[404443469,1770144645025,-392.10693279,0.00017619,2]
[404443470,1770144645034,-5268.0,0.00017641,2]
[404443471,1770144645046,-5268.0,0.00017653,2]
[404443472,1770144645055,-3393.83018374,0.000177,2]
[404443473,1770144645065,-1000.0,0.0001771,7]
[404443474,1770144645075,-1000.0,0.00017728,2]
[404443475,1770144645084,-150.0,0.00017728,2]
[404443476,1770144645093,-1000.0,0.00017739,2]
[404443477,1770144645104,-1000.0,0.00017743,2]
[404443478,1770144645113,-281935.6354073,0.00017747,2]
[404443479,1770144645122,-28013.7593826,0.00017747,2]
[404443480,1770144645132,-150.0,0.00017759,2]
[404443481,1770144645141,-150.0,0.00017761,2]
[404443482,1770144645150,-150.0,0.00017764,2]
[404443483,1770144645160,-150.0,0.00017778,2]
[404443484,1770144645169,-1100.0,0.00017808,7]
[404443485,1770144645179,-250.0,0.00017808,5]
[404443486,1770144645188,-250.0,0.00017808,5]
[404443487,1770144645197,-250.0,0.00017808,5]
[404443488,1770144645208,-250.0,0.00017808,5]
[404443489,1770144645217,-250.0,0.00017808,5]
[404443490,1770144645226,-318.936746,0.00017808,5]
[404443491,1770144645239,-1000.0,0.00017808,2]
[404443492,1770144645249,-1000.0,0.00017813,2]
[404443493,1770144645258,-3760.56275963,0.0001782,10]
[404443494,1770144645268,-2000.0,0.0001782,2]
[404443495,1770144645278,-2000.0,0.0001782,2]
[404443496,1770144645287,-1000.0,0.00017825,2]
[404443497,1770144645296,-1500.0,0.00017826,2]
[404443498,1770144645306,-1000.0,0.00017831,2]
[404443499,1770144645315,-1000.0,0.0001785,2]
[404443500,1770144645324,-200.0,0.00017855,2]
[404443502,1770144645333,-200.0,0.00017856,2]
[404443503,1770144645342,-1000.0,0.00017857,2]
[404443504,1770144645352,-1000.0,0.00017858,2]
[404443505,1770144645362,-500.0,0.00017863,2]
[404443506,1770144645371,-6016.54096038,0.00017873,2]
[404443507,1770144645381,-1000.0,0.00017884,2]
[404443508,1770144645390,-25000.0,0.00017891,3]
[404443509,1770144645400,-1000.0,0.00017893,2]
[404443510,1770144645410,-150.0,0.00017896,2]
[404443511,1770144645419,-500.0,0.000179,2]
[404443512,1770144645429,-25000.0,0.000179,3]
[404443513,1770144645439,-160.0,0.000179,3]
[404443515,1770144645448,-239.96579263,0.000179,2]
[404443516,1770144645458,-12478.67792849,0.000179,3]
[404443517,1770144645467,-5445.9872951,0.000179,2]
[404443518,1770144645478,-348.07987375,0.000179,2]
[404443519,1770144645489,-1348.01360576,0.000179,2]
[404443520,1770144645499,-19955.0,0.000179,2]
[404443521,1770144645509,-150.0,0.00017906,2]
[404443522,1770144645518,-150.0,0.00017915,2]
[404443523,1770144645527,-1000.0,0.00017925,2]
[404443524,1770144645537,-1000.0,0.00017939,2]
[404443525,1770144645547,-1000.0,0.00017941,2]
[404443528,1770144645556,-1000.0,0.0001795,2]
[404443530,1770144645565,-1000.0,0.00017951,2]
[404443532,1770144645575,-157.95285948,0.00017951,2]
[404443534,1770144645585,-2836.0,0.0001796,2]
[404443535,1770144645595,-163.0,0.0001796,2]
[404443536,1770144645604,-400.7491143,0.0001797,2]
[404443537,1770144645615,-983.42551089,0.0001797,2]
[404443538,1770144645626,-150.0,0.00017971,2]
[404443539,1770144645635,-1000.0,0.00017972,2]
[404443540,1770144645644,-562.28195765,0.00017973,2]
[404443541,1770144645655,-500.0,0.00017973,2]
[404443542,1770144645666,-500.0,0.00017973,2]
[404443543,1770144645676,-152.0,0.00017973,4]
[404443544,1770144645686,-930.52052436,0.00017982,2]
[404443545,1770144645695,-1156.75834416,0.0001799,2]
[404443546,1770144645707,-150.0,0.00017995,2]
[404443547,1770144645717,-1000.0,0.00017996,2]
[404443548,1770144645726,-151.0,0.00017997,2]
[404443549,1770144645742,-7265.6182629,0.00017997,2]
[404443550,1770144645752,-348.33867353,0.00017998,2]
[404443551,1770144645762,-1004.24833386,0.00017999,5]
[404443552,1770144645771,-313.9472948,0.00017999,2]
[404443553,1770144645781,-300.0,0.00017999,2]
[404443554,1770144645790,-300.0,0.00017999,2]
[404443555,1770144645801,-666.0,0.00017999,2]
[404443556,1770144645811,-3694666.84172886,0.00018,2]
[404443557,1770144645821,-800458.95350003,0.00018,2]
[404443558,1770144646109,-743.01,0.00018,2]
[404443559,1770144646355,-151.0,0.00013607,2]
[404443561,1770144646365,-7220.2,0.00018,2]
[404443564,1770144646384,-439.5,0.00018,2]
[404443566,1770144646395,-1762.23929642,0.00018,2]
[404443578,1770144646503,-10522.43504015,0.00011733,2]
[404443580,1770144646512,-191.17764233,0.00014319,2]
[404443582,1770144646522,-2870.37506877,0.00018,2]
[404443584,1770144646533,-37123.5961943,0.00018,2]
[404443596,1770144646637,-1059.00000001,0.00018,2]
[404443619,1770144646854,-904.12207549,0.00018,2]
[404443621,1770144646873,-4273.63548002,0.00018,2]
[404443624,1770144646891,-1960.675,0.00018,2]
[404443629,1770144646928,-7360.57384,0.00018,2]
[404443631,1770144646940,-17303.62629333,0.00018,2]
[404443634,1770144646955,-438.73763576,0.00018,2]
[404443636,1770144646966,-465.29250011,0.00018,2]
[404443639,1770144646988,-370.45,0.00018,2]
[404443687,1770144666199,151.0,6.696e-05,2]
[404443692,1770144675852,500.0,6.589e-05,2]
[404443694,1770144704086,5000.01,6.599e-05,2]
[404443695,1770144704112,5000.01,6.599e-05,2]
[404443696,1770144704136,5000.01,6.599e-05,2]
[404443697,1770144704163,10000.01,6.599e-05,2]
[404443698,1770144712826,-5000.01,6.599e-05,2]
[404443699,1770144712956,-5000.01,6.599e-05,2]
[404443700,1770144753850,376.92820347,6.598e-05,2]
[404443701,1770144753890,253.31898295,6.598e-05,2]
[404443702,1770144757484,500.0,6.598e-05,2]
[404443703,1770144757548,500.0,6.598e-05,2]
[404443704,1770144757601,277.64688791,6.598e-05,2]
[404443707,1770144841836,177.32328806,6.598e-05,2]
[404443708,1770144841876,300.0,6.598e-05,2]
[404443709,1770144842374,150.0,6.598e-05,2]
[404443710,1770144842985,300.0,6.598e-05,2]
[404443713,1770144901945,1200.0,6.598e-05,2]
[404443714,1770144961615,300.0,6.598e-05,2]
[404443716,1770145021674,300.0,6.598e-05,2]
[404443717,1770145022420,150.0,6.598e-05,2]
[404443718,1770145022849,300.0,6.598e-05,2]
[404443721,1770145081845,300.0,6.598e-05,2]
[404443722,1770145141523,300.0,6.598e-05,2]
[404443760,1770145201683,1200.0,6.598e-05,2]
[404443761,1770145202488,150.0,6.598e-05,2]
[404443762,1770145203640,300.0,6.598e-05,2]
[404443772,1770145321689,300.0,6.598e-05,2]
[404443839,1770145349841,2364.79263761,6.598e-05,2]
[404443840,1770145349871,10000.01,6.598e-05,2]
[404443841,1770145349897,10000.01,6.598e-05,2]
[404443842,1770145349924,10000.01,6.598e-05,2]
[404443843,1770145349950,10000.01,6.598e-05,2]
[404443844,1770145349976,1339.89390865,6.598e-05,2]
[404443845,1770145381599,300.0,6.598e-05,2]
[404443846,1770145382385,150.0,6.598e-05,2]
[404443847,1770145385416,300.0,6.598e-05,2]
[404443848,1770145428527,-5798.42562336,6.599e-05,2]
[404443849,1770145428552,-10000.01,6.599e-05,2]
[404443850,1770145428654,-10000.01,6.599e-05,2]
[404443851,1770145428802,-10000.01,6.599e-05,2]
[404443852,1770145501481,300.0,6.598e-05,2]
[404443853,1770145501805,1200.0,6.598e-05,2]
[404443854,1770145561552,300.0,6.598e-05,2]
[404443855,1770145566714,300.0,6.598e-05,2]
[404443856,1770145631821,-2900.01,6.599e-05,2]
[404443857,1770145632231,-5000.01,6.599e-05,2]
[404443858,1770145632311,-5000.01,6.599e-05,2]
[404443859,1770145632411,-5000.01,6.599e-05,2]
[404443860,1770145632535,-5000.01,6.599e-05,2]
[404443861,1770145637621,-2155.90561832,6.599e-05,2]
[404443862,1770145637646,-688.19876336,6.599e-05,2]
[404443863,1770145637735,-250.0,6.599e-05,2]
[404443864,1770145637762,-207.0,6.599e-05,2]
[404443865,1770145637788,-20.89548726,6.599e-05,2]
[404443866,1770145637849,-4044.21902548,6.599e-05,2]
[404443867,1770145637899,-307.73,6.6e-05,2]
[404443868,1770145637927,-184.64,6.6e-05,2]
[404443869,1770145637956,-250.0,6.619e-05,2]
[404443870,1770145637984,-1000.0,7.257e-05,2]
[404443871,1770145638011,-150.0,7.257e-05,2]
[404443872,1770145638037,-150.99,7.258e-05,2]
[404443873,1770145638144,-999.99,7.258e-05,2]
[404443874,1770145638171,-735.95,7.258e-05,2]
[404443875,1770145638378,-177.34,7.258e-05,2]
[404443876,1770145638391,-735.95,7.258e-05,2]
[404443877,1770145638409,-1528.13,7.258e-05,2]
[404443878,1770145638439,-5000.01,7.258e-05,2]
[404443883,1770145761711,-300.0,7.257e-05,2]
[404443884,1770145761733,-150.0,7.257e-05,2]
[404443885,1770145761754,-79.5807378,7.257e-05,2]
[404443886,1770145765171,-220.4192622,7.257e-05,2]
[404443887,1770145765201,-2000.6114756,7.258e-05,2]
[404443888,1770145765243,-557.9485244,7.258e-05,2]
[404443889,1770145765403,-5000.01,7.258e-05,2]
[404443891,1770145765547,-0.03,7.258e-05,2]
[404443892,1770145765571,-4999.95,7.258e-05,2]
[404443893,1770145765691,-150.99,7.258e-05,2]
[404443894,1770145765719,-299.99,7.258e-05,2]
[404443895,1770145765774,-4098.05,7.258e-05,2]
[404443896,1770145765838,-5000.01,7.258e-05,2]
[404443897,1770145766007,-5000.01,7.258e-05,2]
[404443898,1770145766121,-5000.01,7.258e-05,2]
[404443899,1770145766266,-191.1,7.258e-05,2]
[404443900,1770145766293,-4617.81,7.258e-05,2]
[404443901,1770145767077,-302.0,7.258e-05,2]
[404443903,1770145768430,-1237.09,7.258e-05,2]
[404443904,1770145768698,-2525.83,7.258e-05,2]
[404443905,1770145768757,-1680.0,7.258e-05,2]
[404443906,1770145768804,-250.0,7.258e-05,2]
[404443907,1770145768827,-250.0,7.259e-05,2]
[404443908,1770145768849,-235.78,7.292e-05,2]
[404443909,1770145768871,-637.43172904,7.4e-05,2]
[404443911,1770145770557,-300.0,7.4e-05,2]
[404443964,1770145831680,-892.71827096,7.4e-05,2]